bitfinex/quotes_SOLUSD_20250518
["timestamp","ask_amount","ask_price","bid_price","bid_amount"]
[1747612264245,34.34023132,172.72,172.71,9.5]
[1747612264851,5.78971746,172.72,172.71,9.5]
[1747612265029,34.34023132,172.72,172.71,9.5]
[1747612265230,5.78904712,172.74,172.73,9.5]
[1747612265461,34.33956098,172.74,172.73,9.5]
[1747612265759,4.76954311,172.75,172.74,9.5]
[1747612266163,4.76954311,172.75,172.74,10.65740857]
[1747612266464,4.76954311,172.75,172.74,29.30705743]
[1747612267064,4.76954311,172.75,172.74,16.44645569]
[1747612267369,4.76954311,172.75,172.74,10.65740857]
[1747612267549,4.76954311,172.75,172.74,16.44645569]
[1747612267954,6.3183,172.94,172.74,16.44645569]
[1747612267955,14.45420906,172.96,172.88,9.5]
[1747612268156,14.45420906,172.96,172.91,9.5]
[1747612268465,14.45420906,172.96,172.86,25.44]
[1747612268466,28.55051386,172.92,172.89,9.5]
[1747612268648,28.55051386,172.9,172.85,9.5]
[1747612268855,28.55051386,172.89,172.86,9.5]
[1747612269053,5.7846937,172.87,172.86,9.5]
[1747612269471,34.33520756,172.87,172.86,9.5]
[1747612269770,20.23472277,172.97,172.93,9.5]
[1747612269949,20.23472277,172.97,172.91,9.5]
[1747612269950,54.55051386,172.94,172.91,9.5]
[1747612270149,26.0,172.94,172.91,9.5]
[1747612270361,26.0,172.94,172.93,9.5]
[1747612270543,54.55051386,172.94,172.91,9.5]
[1747612270743,28.55051386,172.92,172.91,9.5]
[1747612270951,28.55051386,172.92,172.9,9.5]
[1747612271283,5.78302105,172.92,172.88,9.5]
[1747612271570,57.10102772,172.89,172.86,9.5]
[1747612271746,28.55051386,172.87,172.86,9.5]
[1747612272069,28.55051386,172.87,172.83,9.5]
[1747612272260,54.55051386,172.89,172.86,9.5]
[1747612272460,26.0,172.89,172.88,9.5]
[1747612272663,57.10102772,172.89,172.88,9.5]
[1747612272866,57.10102772,172.89,172.84,9.5]
[1747612273070,5.78435909,172.88,172.87,9.5]
[1747612273567,5.78435909,172.88,172.85,9.5]
[1747612273771,26.0,172.85,172.81,9.5]
[1747612273979,26.0,172.85,172.82,9.5]
[1747612274277,28.55051386,172.83,172.82,9.5]
[1747612274653,26.0,172.85,172.84,9.5]
[1747612274972,83.10102772,172.85,172.79,9.5]
[1747612275179,83.10102772,172.85,172.81,9.5]
[1747612275180,5.78569775,172.84,172.81,9.5]
[1747612275498,5.78569775,172.84,172.75,34.7877304]
[1747612275499,26.0,172.81,172.79,9.5]
[1747612276194,26.0,172.81,172.8,9.5]
[1747612276370,54.55051386,172.81,172.8,9.5]
[1747612276574,83.10102772,172.81,172.79,9.5]
[1747612276771,57.10102772,172.8,172.79,9.5]
[1747612277180,5.78703703,172.8,172.79,9.5]
[1747612277485,62.88806475,172.8,172.77,9.5]
[1747612277784,28.55051386,172.78,172.77,9.5]
[1747612277992,26.0,172.76,172.73,9.5]
[1747612278209,26.0,172.76,172.74,9.5]
[1747612278383,48.80514348,172.8,172.76,9.5]
[1747612278694,54.55051386,172.77,172.75,9.5]
[1747612278860,28.55051386,172.76,172.75,9.5]
[1747612279065,20.25462962,172.8,172.75,9.5]
[1747612279394,48.80514348,172.8,172.77,9.5]
[1747612279964,48.80514348,172.8,172.78,9.5]
[1747612280357,26.0,172.77,172.75,9.5]
[1747612280564,28.55051386,172.76,172.75,9.5]
[1747612280767,74.80514348,172.8,172.79,9.5]
[1747612280962,5.78703703,172.8,172.79,9.5]
[1747612281267,34.33724474,172.81,172.8,9.5]
[1747612282394,60.33724474,172.81,172.79,9.5]
[1747612282602,57.10102772,172.8,172.76,9.5]
[1747612282803,46.25348627,172.81,172.76,9.5]
[1747612283107,28.55051386,172.77,172.76,9.5]
[1747612283306,28.55051386,172.77,172.75,26.34]
[1747612283307,34.33855576,172.77,172.75,35.84]
[1747612283484,28.55051386,172.76,172.75,26.34]
[1747612283686,28.55051386,172.76,172.75,9.5]
[1747612284084,5.7880419,172.77,172.76,9.5]
[1747612284608,5.7880419,172.77,172.73,9.5]
[1747612284788,34.33855576,172.77,172.73,9.5]
[1747612284980,5.7880419,172.77,172.76,9.5]
[1747612285183,34.33855576,172.77,172.76,9.5]
[1747612285784,5.78703703,172.8,172.76,9.5]
[1747612286082,21.44064077,172.77,172.76,9.5]
[1747612286297,21.44064077,172.77,172.74,9.5]
[1747612286490,21.44064077,172.75,172.74,9.5]
[1747612286686,21.44064077,172.75,172.69,26.34]
[1747612286687,41.69527039,172.8,172.79,9.5]
[1747612287011,89.13591116,172.8,172.79,9.5]
[1747612287207,46.25462962,172.8,172.78,9.5]
[1747612287513,21.44064077,172.79,172.78,9.5]
[1747612288096,20.25462962,172.8,172.78,9.5]
[1747612288314,20.25462962,172.8,172.79,9.5]
[1747612288484,8.9527605,172.97,172.86,9.5]
[1747612288813,21.44064077,172.87,172.86,9.5]
[1747612289008,5.78435909,172.88,172.86,9.5]
[1747612289307,5.78068096,172.99,172.98,9.5]
[1747612289509,27.22132173,172.99,172.96,3.102272]
[1747612289811,31.61358175,172.97,172.91,3.102272]
[1747612289991,31.61358175,172.92,172.91,3.102272]
[1747612290712,20.23238337,172.99,172.91,3.102272]
[1747612290911,26.0,172.97,172.96,3.102272]
[1747612291119,26.0,172.97,172.95,3.102272]
[1747612291634,5.78168362,172.96,172.95,3.102272]
[1747612292130,37.39526537,172.96,172.93,3.102272]
[1747612292302,31.61358175,172.94,172.93,3.102272]
[1747612293594,37.39593401,172.94,172.93,3.102272]
[1747612293800,51.85181466,172.94,172.9,3.102272]
[1747612294108,63.2271635,172.91,172.85,29.442272]
[1747612294309,31.61358175,172.86,172.85,29.442272]
[1747612294740,31.61358175,172.86,172.84,3.102272]
[1747612294912,31.61358175,172.85,172.82,3.102272]
[1747612295112,31.61358175,172.83,172.82,3.102272]
[1747612295336,31.61358175,172.83,172.81,3.102272]
[1747612295638,5.78670215,172.81,172.79,3.102272]
[1747612295813,63.2271635,172.8,172.79,3.102272]
[1747612296012,31.61358175,172.8,172.79,3.102272]
[1747612296231,31.61358175,172.8,172.78,26.34]
[1747612296440,31.61358175,172.8,172.78,29.442272]
[1747612296817,31.61358175,172.79,172.78,26.34]
[1747612297203,5.78670215,172.81,172.8,3.102272]
[1747612297431,37.4002839,172.81,172.8,3.102272]
[1747612298238,5.78670215,172.81,172.8,3.102272]
[1747612298414,26.0,172.87,172.84,3.102272]
[1747612298612,31.61358175,172.85,172.84,3.102272]
[1747612298930,31.61358175,172.85,172.83,3.102272]
[1747612299131,26.0,172.87,172.85,3.102272]
[1747612299334,31.61358175,172.86,172.85,3.102272]
[1747612299516,31.61358175,172.9,172.88,3.102272]
[1747612299722,51.85766758,172.89,172.85,3.102272]
[1747612299926,31.61358175,172.86,172.83,3.102272]
[1747612300122,31.61358175,172.84,172.82,3.102272]
[1747612300321,26.0,172.87,172.86,3.102272]
[1747612300638,57.61358175,172.87,172.84,3.102272]
[1747612300812,26.0,172.87,172.86,3.102272]
[1747612301017,57.61358175,172.87,172.86,3.102272]
[1747612301630,57.61358175,172.87,172.78,26.34]
[1747612301631,57.61358175,172.87,172.84,3.102272]
[1747612301831,31.61358175,172.85,172.8,3.102272]
[1747612302041,20.2475992,172.86,172.82,3.102272]
[1747612302338,20.2475992,172.86,172.83,3.102272]
[1747612302522,31.61358175,172.84,172.83,3.102272]
[1747612303242,20.2475992,172.86,172.83,3.102272]
[1747612303541,5.78502834,172.86,172.85,3.102272]
[1747612303837,31.61358175,172.86,172.85,3.102272]
[1747612304209,31.61358175,172.86,172.8,26.7]
[1747612304210,20.24445308,172.89,172.86,3.102272]
[1747612304415,31.61358175,172.87,172.86,3.102272]
[1747612305029,20.24445308,172.89,172.88,3.102272]
[1747612305233,5.78402452,172.89,172.88,3.102272]
[1747612305825,20.24174425,172.91,172.87,3.102272]
[1747612306047,20.24174425,172.91,172.86,26.74]
[1747612306249,31.61358175,172.87,172.83,3.102272]
[1747612306446,31.61358175,172.87,172.8,53.44]
[1747612306447,31.61358175,172.9,172.89,3.102272]
[1747612306623,63.2271635,172.9,172.88,3.102272]
[1747612306829,31.61358175,172.89,172.86,3.102272]
[1747612307044,31.61358175,172.9,172.86,3.102272]
[1747612307245,31.61358175,172.87,172.86,3.102272]
[1747612307456,31.61358175,172.87,172.85,3.102272]
[1747612307623,31.61358175,172.86,172.85,3.102272]
[1747612308025,37.39861009,172.86,172.85,3.102272]
[1747612309056,37.39861009,172.86,172.84,3.102272]
[1747612309246,31.61358175,172.85,172.84,3.102272]
[1747612310137,37.39894478,172.85,172.84,3.102272]
[1747612310839,20.23589268,172.96,172.88,3.102272]
[1747612311323,31.61358175,172.89,172.88,3.102272]
[1747612311852,26.0,172.93,172.91,3.102272]
[1747612312036,31.61358175,172.92,172.91,3.102272]
[1747612312350,37.3966028,172.92,172.91,3.102272]
[1747612312761,37.3966028,172.92,172.89,3.102272]
[1747612312934,31.61358175,172.9,172.89,3.102272]
[1747612313447,5.78302105,172.92,172.91,3.102272]
[1747612313656,37.3966028,172.92,172.91,3.102272]
[1747612314670,5.78302105,172.92,172.91,3.102272]
[1747612314836,37.3966028,172.92,172.91,3.102272]
[1747612316742,31.61358175,172.92,172.91,3.102272]
[1747612317960,26.0,172.98,172.97,3.102272]
[1747612318133,63.39459689,172.98,172.97,3.102272]
[1747612318847,77.84713475,172.98,172.94,3.102272]
[1747612319043,46.233553,172.98,172.94,3.102272]
[1747612319249,31.61358175,172.95,172.94,3.102272]
[1747612319855,57.61358175,172.95,172.91,3.102272]
[1747612320164,75.13862873,172.98,172.85,3.102272]
[1747612320165,89.2271635,172.92,172.85,3.102272]
[1747612320377,63.39861009,172.86,172.84,3.102272]
[1747612320534,26.0,172.82,172.78,3.102272]
[1747612320732,57.61358175,172.79,172.75,3.102272]
[1747612321037,26.0,172.73,172.72,5.32525478]
[1747612321247,89.2271635,172.73,172.72,5.32525478]
[1747612321460,89.2271635,172.73,172.7,3.102272]
[1747612321672,38.6348934,172.71,172.7,3.102272]
[1747612322174,26.0,172.77,172.75,3.102272]
[1747612322462,31.78737195,172.79,172.77,3.102272]
[1747612322671,19.3174467,172.78,172.77,3.102272]
[1747612322833,5.78737195,172.79,172.78,3.102272]
[1747612323244,5.78737195,172.79,172.76,3.102272]
[1747612323441,5.78636731,172.82,172.79,3.102272]
[1747612323666,5.78636731,172.82,172.81,3.102272]
[1747612323974,37.44502445,172.82,172.81,3.102272]
[1747612324282,95.10368159,172.82,172.77,3.102272]
[1747612324478,31.65865714,172.78,172.77,3.102272]
[1747612324685,31.65865714,172.78,172.76,3.102272]
[1747612324842,31.65865714,172.77,172.76,3.102272]
[1747612325169,26.0,172.79,172.73,26.74]
[1747612325170,26.0,172.81,172.79,3.102272]
[1747612325370,26.0,172.81,172.8,3.102272]
[1747612325745,26.0,172.81,172.77,3.102272]
[1747612325947,26.0,172.81,172.74,3.102272]
[1747612326261,26.0,172.81,172.77,3.102272]
[1747612326461,5.78737195,172.79,172.78,3.102272]
[1747612327061,37.44602909,172.79,172.78,3.102272]
[1747612328261,37.44602909,172.79,172.78,2.602272]
[1747612328645,51.91445897,172.79,172.76,2.602272]
[1747612328846,31.65865714,172.77,172.74,2.602272]
[1747612329045,31.65865714,172.75,172.72,2.602272]
[1747612329274,20.25580183,172.79,172.76,2.602272]
[1747612329458,57.65865714,172.77,172.76,2.602272]
[1747612329862,57.65865714,172.77,172.74,2.602272]
[1747612330076,31.65865714,172.75,172.74,2.602272]
[1747612330280,5.78737195,172.79,172.78,2.602272]
[1747612330446,37.44602909,172.79,172.78,2.602272]
[1747612330780,1.5026,172.89,172.68,10.0]
[1747612330781,5.78636731,172.82,172.81,2.602272]
[1747612330950,37.44502445,172.82,172.81,2.602272]
[1747612331279,5.78402452,172.89,172.88,2.602272]
[1747612331578,37.44268166,172.89,172.88,2.602272]
[1747612332286,37.44268166,172.89,172.87,2.602272]
[1747612332491,63.44301623,172.88,172.86,2.602272]
[1747612332771,63.44301623,172.88,172.8,2.602272]
[1747612332772,26.0,172.84,172.8,2.602272]
[1747612332989,63.31731428,172.81,172.78,26.74]
[1747612333275,31.65865714,172.79,172.78,29.342272]
[1747612333491,49.16705228,172.88,172.83,2.602272]
[1747612333640,49.16705228,172.88,172.78,26.74]
[1747612333641,26.0,172.87,172.86,2.602272]
[1747612333846,20.24525682,172.88,172.87,2.602272]
[1747612334047,20.24525682,172.88,172.84,2.602272]
[1747612334273,26.0,172.85,172.81,2.602272]
[1747612334483,56.34076266,172.83,172.64,2.602272]
[1747612334756,26.0,172.73,172.69,2.602272]
[1747612334973,26.0,172.72,172.69,2.602272]
[1747612335175,26.0,172.72,172.71,2.602272]
[1747612335389,31.65865714,172.8,172.77,2.602272]
[1747612335561,75.18127638,172.83,172.81,2.602272]
[1747612335764,75.18127638,172.83,172.82,2.602272]
[1747612336086,80.83993352,172.83,172.82,2.602272]
[1747612336483,28.9221208,172.88,172.85,2.602272]
[1747612336790,20.24408583,172.89,172.88,2.602272]
[1747612337974,51.90274297,172.89,172.88,2.602272]
[1747612338653,37.44239395,172.9,172.89,2.602272]
[1747612338893,20.233553,172.98,172.94,2.602272]
[1747612339072,20.233553,172.98,172.96,2.602272]
[1747612339275,20.233553,172.98,172.97,2.602272]
[1747612339590,5.78101514,172.98,172.97,2.602272]
[1747612340278,37.43967228,172.98,172.97,2.602272]
[1747612341380,5.78101514,172.98,172.97,2.602272]
[1747612341679,37.43967228,172.98,172.97,2.602272]
[1747612342275,5.78101514,172.98,172.97,2.602272]
[1747612342573,37.43967228,172.98,172.97,2.602272]
[1747612344816,5.78101514,172.98,172.97,2.602272]
[1747612344977,37.43967228,172.98,172.97,2.602272]
[1747612345581,5.78101514,172.98,172.97,2.602272]
[1747612346097,37.43967228,172.98,172.97,2.602272]
[1747612346678,5.78068096,172.99,172.97,2.602272]
[1747612346897,31.65865714,172.98,172.97,2.602272]
[1747612347405,31.65865714,172.98,172.96,2.602272]
[1747612347614,5.78068096,172.99,172.97,2.602272]
[1747612347817,31.65865714,172.98,172.97,2.602272]
[1747612348117,5.78068096,172.99,172.98,2.602272]
[1747612349390,37.4393381,172.99,172.98,2.602272]
[1747612351588,5.78068096,172.99,172.98,2.602272]
[1747612352102,37.4393381,172.99,172.98,2.602272]
[1747612353287,5.78068096,172.99,172.98,2.602272]
[1747612353498,37.4393381,172.99,172.98,2.602272]
[1747612353680,5.78068096,172.99,172.98,2.602272]
[1747612354295,37.4393381,172.99,172.98,2.602272]
[1747612354898,37.779,173.0,172.99,2.602272]
[1747612355293,27.7792,173.0,172.99,43.51070182]
[1747612355495,27.7792,173.0,172.99,55.74355668]
[1747612355801,21.1126,173.0,172.99,55.74355668]
[1747612356702,21.1126,173.0,172.99,31.31322686]
[1747612356882,21.1126,173.0,172.99,21.31322686]
[1747612357078,21.1126,173.0,172.99,31.31322686]
[1747612357295,21.1126,173.0,172.99,74.77962686]
[1747612357604,21.1126,173.0,172.99,84.77962686]
[1747612357804,21.1126,173.0,172.99,91.71592552]
[1747612358027,90.2102611,173.0,172.98,2.602272]
[1747612358306,90.2102611,173.0,172.99,2.602272]
[1747612358307,26.89294682,173.0,172.99,2.602272]
[1747612359390,58.55160396,173.0,172.99,2.602272]
[1747612360003,90.2102611,173.0,172.99,2.602272]
[1747612360501,26.89294682,173.0,172.99,2.602272]
[1747612360701,90.2102611,173.0,172.99,2.602272]
[1747612360977,26.89294682,173.0,172.99,2.602272]
[1747612361183,90.2102611,173.0,172.99,2.602272]
[1747612362297,58.55160396,173.0,172.99,2.602272]
[1747612364288,116.2102611,173.0,172.99,2.602272]
[1747612364585,90.2102611,173.0,172.99,2.602272]
[1747612366007,90.2102611,173.0,172.98,2.602272]
[1747612366214,37.4393381,172.99,172.98,2.602272]
[1747612367609,31.65865714,172.99,172.98,2.602272]
[1747612367806,37.4393381,172.99,172.98,2.602272]
[1747612368216,5.78068096,172.99,172.98,2.602272]
[1747612368416,37.4393381,172.99,172.98,2.602272]
[1747612368790,21.1126,173.0,172.99,2.602272]
[1747612369217,52.77125714,173.0,172.99,2.602272]
[1747612369398,21.1126,173.0,172.99,2.602272]
[1747612369600,58.55160396,173.0,172.99,2.602272]
[1747612370312,58.55160396,173.0,172.98,26.7]
[1747612370313,90.2102611,173.0,172.98,2.602272]
[1747612370618,31.65865714,172.99,172.98,2.602272]
[1747612371304,58.55160396,173.0,172.99,2.602272]
[1747612371503,26.89294682,173.0,172.99,2.602272]
[1747612371906,58.55160396,173.0,172.99,2.602272]
[1747612372106,26.89294682,173.0,172.99,2.602272]
[1747612372411,58.55160396,173.0,172.99,2.602272]
[1747612373515,52.77125714,173.0,172.99,2.602272]
[1747612374502,58.55160396,173.0,172.99,2.602272]
[1747612378701,90.2102611,173.0,172.99,2.602272]
[1747612378904,90.2102611,173.0,172.98,2.602272]
[1747612379214,26.0,172.96,172.95,2.602272]
[1747612379396,57.65865714,172.96,172.9,218.982272]
[1747612379592,21.4070311,172.91,172.9,218.982272]
[1747612379906,26.0,172.94,172.93,2.602272]
[1747612380219,47.4070311,172.94,172.93,2.602272]
[1747612380820,53.18938336,172.94,172.93,2.602272]
[1747612381001,27.18938336,172.94,172.93,2.602272]
[1747612381327,21.4070311,172.94,172.93,2.602272]
[1747612381531,27.18938336,172.94,172.93,2.602272]
[1747612382909,5.78134936,172.97,172.96,2.602272]
[1747612383126,27.18838046,172.97,172.96,2.602272]
[1747612384399,21.4070311,172.97,172.96,2.602272]
[1747612385124,27.18838046,172.97,172.96,2.602272]
[1747612385706,48.29997792,173.0,172.99,2.602272]
[1747612386001,26.89294682,173.0,172.99,2.602272]
[1747612386215,48.29997792,173.0,172.99,2.602272]
[1747612386419,21.1126,173.0,172.99,2.602272]
[1747612386795,42.5196311,173.0,172.99,2.602272]
[1747612387225,21.1126,173.0,172.99,2.602272]
[1747612387956,21.1126,173.0,172.99,8.38295296]
[1747612388858,21.1126,173.0,172.99,9.53860411]
[1747612389141,21.1126,173.0,172.99,19.53860411]
[1747612389343,21.1126,173.0,172.99,3.75792315]
[1747612389548,21.1126,173.0,172.99,9.53860411]
[1747612389733,21.1126,173.0,172.99,38.18825297]
[1747612389931,16.25161153,173.0,172.99,38.18825297]
[1747612391251,16.25161153,173.0,172.99,28.18825297]
[1747612391749,16.25161153,173.0,172.99,38.18825297]
[1747612392346,16.25161153,173.0,172.99,28.18825297]
[1747612392528,16.25161153,173.0,172.99,3.75792315]
[1747612392860,16.25161153,173.0,172.99,56.922272]
[1747612393157,43.43898945,173.0,172.99,56.922272]
[1747612393524,22.03195835,173.0,172.99,56.922272]
[1747612393762,16.25161153,173.0,172.99,56.922272]
[1747612397061,16.25161153,173.0,172.99,73.85863532]
[1747612397454,16.25161153,173.0,172.99,139.57795436]
[1747612397637,16.25161153,173.0,172.99,138.422272]
[1747612397954,16.25161153,173.0,172.99,154.20295296]
[1747612398158,16.25161153,173.0,172.99,172.85260182]
[1747612398336,11.34172244,173.0,172.99,96.51970182]
[1747612398530,4.90988909,173.0,172.99,97.67520693]
[1747612398731,36.28,173.08,173.07,2.602272]
[1747612398928,36.28,173.08,173.07,57.622272]
[1747612400178,63.46470616,173.08,173.07,57.622272]
[1747612400329,36.28,173.08,173.07,57.622272]
[1747612401951,36.28,173.08,173.07,58.77741689]
[1747612402159,36.28,173.08,173.07,64.55542578]
[1747612402531,36.28,173.08,173.07,58.77741689]
[1747612402735,36.28,173.08,173.07,68.77741689]
[1747612402937,36.28,173.08,173.07,58.77741689]
[1747612403260,36.28,173.08,173.07,57.622272]
[1747612404242,36.28,173.08,173.07,82.04992975]
[1747612404441,36.28,173.08,173.07,93.20494747]
[1747612404636,36.28,173.08,173.07,58.77728972]
[1747612404851,36.28,173.08,173.07,57.622272]
[1747612405147,7.9679,173.07,173.05,2.602272]
[1747612405344,36.28,173.08,173.07,2.602272]
[1747612406240,36.28,173.08,173.07,30.602272]
[1747612406951,42.05767506,173.08,173.07,30.602272]
[1747612407652,63.46470616,173.08,173.07,2.602272]
[1747612408734,42.05767506,173.08,173.07,2.602272]
[1747612408937,63.46470616,173.08,173.07,2.602272]
[1747612409162,63.46470616,173.08,173.06,2.602272]
[1747612409358,1.15513688,173.07,173.05,29.742272]
[1747612409560,42.05767506,173.08,173.07,2.602272]
[1747612410140,36.28,173.08,173.07,2.602272]
[1747612410850,36.28,173.08,173.07,28.18500771]
[1747612411052,36.28,173.08,173.07,38.18500771]
[1747612412445,36.28,173.16,173.15,2.602272]
[1747612412634,36.28,173.16,173.15,31.182272]
[1747612414051,67.78108987,173.16,173.15,31.182272]
[1747612414245,73.55609564,173.16,173.15,31.182272]
[1747612414946,42.05500577,173.16,173.15,31.182272]
[1747612415146,73.55609564,173.16,173.15,31.182272]
[1747612415774,42.05500577,173.16,173.15,31.182272]
[1747612416073,36.28,173.16,173.15,31.182272]
[1747612417464,67.78108987,173.16,173.15,31.182272]
[1747612417638,36.28,173.16,173.15,31.182272]
[1747612419259,73.55609564,173.16,173.15,31.182272]
[1747612419580,42.05500577,173.16,173.15,31.182272]
[1747612419759,73.55609564,173.16,173.15,31.182272]
[1747612420759,42.05500577,173.16,173.15,31.182272]
[1747612420977,73.55609564,173.16,173.15,31.182272]
[1747612421577,80.14229564,173.16,173.15,2.602272]
[1747612422749,48.64120577,173.16,173.15,2.602272]
[1747612422974,36.28,173.16,173.15,2.602272]
[1747612424977,36.28,173.16,173.15,38.9576113]
[1747612425757,36.28,173.16,173.15,57.60726016]
[1747612425966,36.28,173.16,173.15,58.76176275]
[1747612426179,36.28,173.16,173.15,68.76176275]
[1747612426963,36.28,173.16,173.15,58.76176275]
[1747612427159,36.28,173.16,173.15,38.9576113]
[1747612427476,36.28,173.16,173.15,33.182272]
[1747612427875,36.28,173.16,173.15,58.76183532]
[1747612428779,4.76954311,173.23,173.22,2.602272]
[1747612428999,4.76954311,173.23,173.22,33.082272]
[1747612433080,42.04330514,173.23,173.22,33.082272]
[1747612433477,10.54221527,173.23,173.22,33.082272]
[1747612433889,42.04330514,173.23,173.22,33.082272]
[1747612434998,42.04330514,173.23,173.22,30.48]
[1747612435510,80.93473189,173.23,173.2,2.602272]
[1747612435673,63.00217974,173.21,173.19,2.602272]
[1747612435876,63.00217974,173.2,173.19,2.602272]
[1747612436110,1.15513688,173.21,173.19,2.602272]
[1747612436308,24.97389569,173.23,173.22,2.602272]
[1747612436502,42.04330514,173.23,173.22,2.602272]
[1747612436688,36.27063298,173.23,173.22,2.602272]
[1747612437100,42.04330514,173.23,173.22,2.602272]
[1747612437493,36.27063298,173.23,173.22,2.602272]
[1747612438503,4.76954311,173.23,173.22,2.602272]
[1747612438685,36.27063298,173.23,173.22,2.602272]
[1747612439281,4.76954311,173.23,173.22,2.602272]
[1747612439481,36.27063298,173.23,173.22,2.602272]
[1747612439694,4.76954311,173.23,173.22,2.602272]
[1747612439986,36.27063298,173.23,173.22,2.602272]
[1747612440798,4.76954311,173.23,173.22,2.602272]
[1747612441390,36.27063298,173.23,173.22,2.602272]
[1747612441612,4.76954311,173.23,173.22,2.602272]
[1747612441815,26.08758858,173.23,173.22,2.602272]
[1747612442114,4.76954311,173.23,173.22,2.602272]
[1747612443010,4.76954311,173.23,173.22,8.37527742]
[1747612443799,4.76954311,173.23,173.22,9.52946692]
[1747612444025,4.76954311,173.23,173.22,8.37527742]
[1747612444820,4.76954311,173.23,173.22,9.52945344]
[1747612445822,4.76954311,173.23,173.22,38.1791023]
[1747612447117,36.28,173.33,173.32,2.602272]
[1747612447323,36.28,173.33,173.32,59.722272]
[1747612448199,36.28,173.33,173.32,2.602272]
[1747612448404,57.59804547,173.33,173.32,2.602272]
[1747612448806,36.28,173.33,173.32,2.602272]
[1747612449325,57.59804547,173.33,173.32,2.602272]
[1747612450006,36.28,173.33,173.32,2.602272]
[1747612450328,36.28,173.33,173.32,8.37194659]
[1747612450700,36.28,173.33,173.32,31.642272]
[1747612452212,36.28,173.33,173.32,37.41194659]
[1747612452618,36.28,173.33,173.32,66.06159545]
[1747612453326,12.51,173.33,173.32,66.06159545]
[1747612453513,36.28,173.41,173.4,2.602272]
[1747612453709,36.28,173.41,173.4,60.382272]
[1747612454401,36.28,173.41,173.4,66.14928468]
[1747612454598,36.28,173.41,173.4,60.382272]
[1747612455011,36.28,173.41,173.4,66.14928468]
[1747612455700,36.28,173.41,173.4,95.95197075]
[1747612455915,36.28,173.41,173.4,97.28187075]
[1747612457003,36.28,173.41,173.4,123.28187075]
[1747612457216,36.28,173.41,173.4,96.12883354]
[1747612457408,36.28,173.49,173.48,2.602272]
[1747612457607,36.28,173.49,173.48,277.39461324]
[1747612457812,36.28,173.49,173.48,218.502272]
[1747612458012,36.28,173.49,173.48,276.282272]
[1747612458543,67.65866866,173.49,173.48,2.602272]
[1747612458721,75.94496866,173.49,173.35,28.52]
[1747612459063,31.37866866,173.46,173.36,11.15321741]
[1747612459219,44.5663,173.49,173.4,10.0]
[1747612459535,50.33032828,173.49,173.41,1.15275171]
[1747612459715,31.37866866,173.44,173.42,29.98]
[1747612460030,50.33032828,173.49,173.43,29.64]
[1747612460218,31.37866866,173.44,173.43,29.64]
[1747612461124,1.15513688,173.47,173.4,29.64]
[1747612462013,31.37866866,173.42,173.4,29.64]
[1747612462219,44.5663,173.49,173.4,29.64]
[1747612462433,51.48556268,173.49,173.4,29.64]
[1747612462626,31.37866866,173.43,173.41,5.76668012]
[1747612462853,51.48547081,173.49,173.4,29.64]
[1747612463149,31.37866866,173.44,173.4,29.64]
[1747612463337,31.37866866,173.44,173.4,35.40688312]
[1747612463739,45.72143688,173.49,173.4,35.40688312]
[1747612463952,31.37866866,173.45,173.4,36.55990991]
[1747612464251,31.37866866,173.45,173.4,50.97744162]
[1747612464444,44.5663,173.49,173.4,35.40688312]
[1747612464628,31.37866866,173.43,173.4,35.40688312]
[1747612465048,44.5663,173.49,173.4,36.55992983]
[1747612465351,44.5663,173.49,173.4,60.97746154]
[1747612465554,36.28,173.49,173.43,26.0]
[1747612465736,36.28,173.49,173.44,1.15263912]
[1747612465938,36.28,173.49,173.42,215.8]
[1747612466639,31.37866866,173.47,173.43,5.7660151]
[1747612466853,31.37866866,173.45,173.43,5.7660151]
[1747612467052,31.37866866,173.44,173.42,221.56628462]
[1747612467348,31.37866866,173.48,173.42,235.9821536]
[1747612467555,31.37866866,173.47,173.43,1.15281683]